Cogmind - Beta 16 @@@ ROGUE MODE // 2025.10.24 @ 19:13:29 Player: human Result: Destroyed by Y-45 Defender with Heavy Assault Rifle Performance ------------- Evolutions (1) 500 Regions Visited (4) 800 Robots Destroyed (72) 360 Value Destroyed (1681) 1681 Prototype IDs (1) 20 Alien Tech Used (0) 0 Bonus (84) 84 TOTAL SCORE: 3445 Bonus ------- High Alert Combat Kills 59 Follower Combat Kills 25 Cogmind --------- Core Integrity 0/400 Matter 300/300 Energy 100/100 System Corruption 0% Temperature Cool (21) Movement Rolling (165) Ox5 Location -9/Storage Parts ------- > --- POWER (1) -------- (None) > --- PROPULSION (3) --- Light Treads Compact Wheel > --- UTILITY (2) ------ Huge Storage Unit Hardened Light Armor Plating > --- WEAPON (3) ------- Light Assault Rifle Makeshift Shrapnel Gun Improved Light Cannon > --- INVENTORY (25) --- Improved Ion Engine Heat Sink High-capacity Storage Unit Cargo Storage Unit Cargo Storage Unit High-capacity Matter Pod (200) Sensor Array Improved Terrain Scanner Medium Armor Plating Hardened Light Armor Plating Tractor Beam Field Recycling Unit (0) Medium Laser Medium Laser Mining Laser Signal Generator Peak State ------------ > --- POWER ------------ Light Ion Engine > --- PROPULSION ------- Wheel Compact Wheel Compact Wheel > --- UTILITY ---------- High-capacity Storage Unit Makeshift Power Shielding > --- WEAPON ----------- Assault Cannon Assault Cannon Assault Cannon > --- INVENTORY -------- Light Nuclear Core Compact Wheel Heat Sink Small Storage Unit Huge Storage Unit High-capacity Matter Pod Improved Terrain Scanner Makeshift Propulsion Shielding Light Armor Plating Tractor Beam Medium Laser Medium Laser Medium Laser Subdweller Beam Cannon Makeshift Shrapnel Gun Assault Cannon Mining Laser Signal Generator [Rating: 21] Favorites ----------- Power Light Ion Engine Engine Light Ion Engine Power Core Light Nuclear Core Propulsion Compact Wheel Treads Light Treads Wheel Compact Wheel Utility Huge Storage Unit Device Heat Sink Storage Huge Storage Unit Protection Power Shielding Weapon Medium Laser Energy Gun Medium Laser Energy Cannon Advanced Beam Cannon Ballistic Gun Light Assault Rifle Ballistic Cannon Assault Cannon Special Weapon Mining Laser Build | -11 -10 -10 -9 -9 ------- Run | Yrd Mat Min Mat Sto Slots Evolved 2 | . . . 2 . Power . | . . . . . Propulsion 1 | . . . 1 . Utility . | . . . . . Weapon 1 | . . . 1 . Parts Attached 47 | 6 11 1 23 6 Power 5 | 1 . . 4 . Engine 4 | 1 . . 3 . Core 1 | . . . 1 . Reactor . | . . . . . Propulsion 10 | 2 2 1 3 2 Treads 1 | . . . . 1 Leg . | . . . . . Wheel 9 | 2 2 1 3 1 Hover . | . . . . . Flight . | . . . . . Utility 15 | 1 4 . 9 1 Device 6 | . 2 . 4 . Storage 3 | 1 1 . 1 . Processor . | . . . . . Hackware . | . . . . . Protection 6 | . 1 . 4 1 Artifact . | . . . . . Weapon 17 | 2 5 . 7 3 Energy Gun 6 | 2 3 . 1 . Energy Cannon 2 | . . . 2 . Ballistic Gun 3 | . 1 . . 2 Ballistic Cannon 5 | . . . 4 1 Launcher . | . . . . . Special Weapon 1 | . 1 . . . Impact Weapon . | . . . . . Slashing Weapon . | . . . . . Piercing Weapon . | . . . . . Special Melee Weapon . | . . . . . Unidentified Prototypes 1 | . . . 1 . Parts Lost 19 | . 3 1 8 7 Power 3 | . . . 2 1 Propulsion 7 | . 1 1 3 2 Utility 3 | . 1 . 2 . Weapon 6 | . 1 . 1 4 Highest Loss Streak 4 | . 1 1 4 2 To Critical Strikes . | . . . . . Average Backups 12 | 1 7 11 16 15 Power 1 | . 1 1 1 1 Propulsion 1 | . 3 2 . . Utility 5 | . 1 4 8 10 Weapon 3 | . 1 3 6 3 Tool/Special . | . . . . . Unused Backups 11 | . 3 . . 8 Power 3 | . 1 . . 2 Propulsion 2 | . 2 . . . Utility 6 | . . . . 6 Weapon . | . . . . . Tool/Special . | . . . . . Average Slot Usage (%) 95 | . 94 99 96 93 Engine 11 | . 14 14 8 10 Treads 1 | . . . . 8 Wheel 27 | . 27 27 30 21 Device 8 | . 5 14 8 9 Storage 12 | . 14 14 11 11 Protection 2 | . 4 . 2 1 Energy Gun 13 | . 22 28 2 2 Energy Cannon 3 | . . . 7 7 Ballistic Gun 4 | . 4 . . 12 Ballistic Cannon 8 | . . . 22 8 Peak Build Rating 21 | 6 10 11 21 20 Average Rating 13 | 4 7 10 18 16 On Entrance 9 | . 6 10 11 18 Avg Prop Armor Cover (%) 9 | . . . . 9 Naked Turns . | . . . . . Heaviest Build 111 | 11 48 48 111 102 Greatest Support 48 | 32 32 26 48 42 Greatest Overweight (x) 6 | . 1 1 3 6 Average Overweight (x) 1 | . . 1 1 3 Largest Inventory Capacity 25 | 8 20 20 25 25 Average Capacity 18 | 6 10 20 24 25 Most Carried 24 | 4 11 14 24 19 Average Carried 14 | 1 7 12 19 18 Final Capacity 25 | 8 20 20 25 25 Final Carried 19 | 4 11 13 19 18 Class Distribution -------------------- 65% | Mutant 22% | Gunner 9% | Tank 3% | Skirmisher Dominant Class ---------------- Mutant | -10/Materials Mutant | -10/Mines Mutant | -9/Materials Gunner | -9/Storage Resources | -11 -10 -10 -9 -9 ----------- Run | Yrd Mat Min Mat Sto Matter Collected 1696 | 213 154 46 921 362 Remotely 173 | . . . 173 . Salvage Created 1697 | . 458 37 597 605 Parts 123 | . 30 3 53 37 Haulers Intercepted 3 | . 1 . 1 1 Recyclers Shooed . | . . . . . Parts Field Recycled 12 | . . . 12 . Retrieved Matter 75 | . . . 75 . Parts Self-Destructed . | . . . . . Prevented . | . . . . . Parts Restored . | . . . . . Kills | -11 -10 -10 -9 -9 ------- Run | Yrd Mat Min Mat Sto Combat Hostiles Destroyed 63 | . 13 3 29 18 Guns 31 | . 11 3 4 13 Cannons 29 | . . . 24 5 AOE 2 | . 2 . . . Classes Destroyed 7 | . 6 . 1 . Worker 4 | . 1 . 2 1 Hauler 3 | . 1 . 1 1 Watcher 2 | . 1 . 1 . Swarmer 31 | . 6 3 18 4 Grunt 22 | . 6 . 7 9 Sentry 9 | . . . 4 5 Subdweller 1 | . 1 . . . Best Kill Streak 9 | . 4 3 9 8 Combat Bots Only 9 | . 3 3 9 7 Max Kills in Single Turn 2 | . 2 1 1 2 Gunslinging 1 | . . . . 1 Exploded 2 | . 2 . . . Melee . | . . . . . Uniques/NPCs Destroyed . | . . . . . Combat | -11 -10 -10 -9 -9 -------- Run | Yrd Mat Min Mat Sto Hostile Shots Fired 328 | . 64 7 183 74 Missed 89 | . 23 2 46 18 Hits 239 | . 41 5 137 56 Projectile 239 | . 41 5 137 56 AOE 2 | . . . 2 . Critical Strikes 2 | . . . 1 1 Damage Taken 2657 | . 463 43 1489 662 Core 486 | . 70 8 277 131 Absorbed by Shields . | . . . . . Redirected to Shielding 3 | . 3 . . . Core Remaining (%) 84 | 100 . 68 . . Volleys Fired 165 | . 45 4 73 43 Largest 3 | . 2 2 3 3 Hottest 185 | . 100 100 185 142 Shots Fired 379 | . 84 8 179 108 Gun 163 | . 82 8 26 47 Cannon 214 | . . . 153 61 Launcher . | . . . . . Special 2 | . 2 . . . Kinetic 204 | . 17 . 116 71 Thermal 173 | . 65 8 63 37 Explosive . | . . . . . Electromagnetic 2 | . 2 . . . Robot Hit Streak 16 | . 16 4 9 12 Robot Miss Streak 8 | . 8 1 4 5 Penetration Max . | . . . . . Secondary Targets 1 | . . . . 1 Max Gunslinging Chain 1 | . . . . 1 Shots Hit Robots 210 | . 48 5 89 68 Core Hits 93 | . 25 3 32 33 Critical Kills . | . . . . . Critical Parts Destroyed . | . . . . . Critical Strikes 7 | . 1 . 4 2 Burn 4 | . 1 . 1 2 Blast 3 | . . . 3 . Melee Attacks . | . . . . . Impact . | . . . . . Slashing . | . . . . . Piercing . | . . . . . Sneak Attacks . | . . . . . Combat Hostiles . | . . . . . Follow-up Attacks . | . . . . . Damage Inflicted 4092 | . 605 77 2100 1310 Guns 1414 | . 555 77 150 632 Cannons 2628 | . . . 1950 678 Explosions 50 | . 50 . . . Melee . | . . . . . Ramming . | . . . . . Kinetic 2324 | . 78 . 1411 835 Thermal 1745 | . 504 77 689 475 Explosive . | . . . . . Electromagnetic 23 | . 23 . . . Impact . | . . . . . Slashing . | . . . . . Piercing . | . . . . . Highest Corruption . | . . . . . Average Corruption . | . . . . . Corruption Purged . | . . . . . Corruption Blocked . | . . . . . Overload Shots . | . . . . . Overflow Damage 75 | . 3 . 72 . Projectiles 72 | . . . 72 . Explosions 3 | . 3 . . . Melee . | . . . . . Knockbacks 12 | . . . 11 1 Impact . | . . . . . Kinetic 11 | . . . 10 1 Secondary 1 | . . . 1 . Self-Inflicted Damage 48 | . 48 . . . Shots 1 | . 1 . . . Rammed . | . . . . . Targets Rammed . | . . . . . Kicked . | . . . . . Crushed . | . . . . . Highest Temperature 606 | . 273 117 606 464 Average Temperature 118 | . 68 53 167 82 Received Heat Transfer 609 | . 135 . 228 246 Effects 15 | . . . 14 1 Shutdowns 3 | . . . 2 1 Energy Bleed 3 | . . . 3 . Interference 2 | . . . 2 . Matter Decay 1 | . . . 1 . Short Circuit 4 | . . . 4 . Damage (minor) 2 | . . . 2 . Siege Activations . | . . . . . Martial Activations . | . . . . . Shielding Activations . | . . . . . Robots Disrupted . | . . . . . Combat Hostiles . | . . . . . Robots Corrupted . | . . . . . Combat Hostiles . | . . . . . Parts Fried . | . . . . . Impact Corruptions . | . . . . . Robots Melted 1 | . . . 1 . Combat Hostiles 1 | . . . 1 . Parts Melted 5 | . 2 . 1 2 Heat Transferred 4200 | . 1462 222 1406 1110 Parts Sabotaged . | . . . . . Parts Stolen . | . . . . . Parts Stripped . | . . . . . Power Chain Reactions 1 | . 1 . . . Alert | -11 -10 -10 -9 -9 ------- Run | Yrd Mat Min Mat Sto Maximum Alert Level 2 | . 1 . 2 2 Low Security (%) 54 | 100 89 100 25 3 Level 1 35 | . 10 . 63 66 Level 2 9 | . . . 11 30 Level 3 . | . . . . . Level 4 . | . . . . . Level 5 . | . . . . . High Security . | . . . . . Max Security . | . . . . . Peak Influence 512 | . 228 50 512 465 Initial 206 | . . 44 . 206 Average 195 | . 133 11 280 326 Influence Increases 2233 | . 574 70 1008 581 Destroy 0b10 Robot/C 1260 | . 240 60 600 360 Destroy 0b10 Robot/NC 45 | . 15 . 20 10 Destroy Leader 310 | . 54 10 144 102 Allied During Kill 3 | . . . 3 . Successful Hack 73 | . 22 . 46 5 Select Force Hacks 180 | . 60 . 60 60 Disable Machine 165 | . 60 . 90 15 Destroy Structure 77 | . 33 . 30 14 Lose Combat Pursuer 120 | . 90 . 15 15 Influence Decreases 1802 | . 459 185 520 638 Entered New Map 353 | . . 71 . 282 Time Decay 1219 | . 429 104 400 286 Lost Part 190 | . 30 10 80 70 Lost Ally 40 | . . . 40 . Squads Dispatched 13 | . 3 . 5 5 Investigation 7 | . 2 . 2 3 Extermination . | . . . . . Reinforcement 6 | . 1 . 3 2 Assault . | . . . . . Garrison . | . . . . . Intercept . | . . . . . Searches Triggered . | . . . . . Construction Impeded . | . . . . . Haulers Reinforced . | . . . . . Active Scanning Responses . | . . . . . Cargo Convoy Interrupts . | . . . . . Stealth | -11 -10 -10 -9 -9 --------- Run | Yrd Mat Min Mat Sto Distress Signals 8 | . 4 . 1 3 Communications Jammed . | . . . . . Distress Signals . | . . . . . Times Spotted 104 | . 25 3 45 31 Peak Tracking Total 11 | . 6 3 8 11 Tactical Retreats 6 | . 4 . 1 1 Traps | -11 -10 -10 -9 -9 ------- Run | Yrd Mat Min Mat Sto Traps Triggered . | . . . . . Indirectly . | . . . . . Trap Hack Attempts . | . . . . . Triggered . | . . . . . Disarmed . | . . . . . Reprogrammed . | . . . . . Reused . | . . . . . Traps Extracted . | . . . . . Installed 4 | . . 4 . . Triggered . | . . . . . Most Traps Carried 1 | . . 1 . . Machines | -11 -10 -10 -9 -9 ---------- Run | Yrd Mat Min Mat Sto Machines Disabled 11 | . 4 . 6 1 Max in Single Turn 3 | . 3 . 1 1 Machines Repaired . | . . . . . Machines Dismantled . | . . . . . Machines Sabotaged . | . . . . . Overloaded Fab Kills . | . . . . . Hacking | -11 -10 -10 -9 -9 --------- Run | Yrd Mat Min Mat Sto Machines Accessed 27 | . 10 . 10 7 Terminals 18 | . 7 . 6 5 Fabricators . | . . . . . Repair Stations 2 | . 1 . 1 . Recycling Units 6 | . 2 . 2 2 Scanalyzers 1 | . . . 1 . Garrison Access . | . . . . . Total Hacks 63 | . 21 . 28 14 Successful 37 | . 13 . 19 5 Failed 25 | . 8 . 8 9 Catastrophic 5 | . 1 . 1 3 Database Lockouts 1 | . . . 1 . Manual 49 | . 17 . 21 11 Terminals 51 | . 17 . 22 12 Fabricators . | . . . . . Repair Stations 3 | . 2 . 1 . Recycling Units 6 | . 2 . 2 2 Scanalyzers 3 | . . . 3 . Garrison Access . | . . . . . Terminal Hacks 7 | . 1 . 5 1 Robot Analysis 1 | . . . 1 . Branch Access Points 2 | . 1 . 1 . Alert Level 2 | . . . 1 1 Registered Components 1 | . . . 1 . Zone Layout 1 | . . . 1 . Fabricator Hacks . | . . . . . Repair Station Hacks . | . . . . . Recycling Unit Hacks . | . . . . . Scanalyzer 1 | . . . 1 . Retrieve Study 1 | . . . 1 . Garrison Access Hacks . | . . . . . Unauthorized Hacks 29 | . 12 . 13 4 Terminals 21 | . 9 . 10 2 Botnet 10 | . 3 . 5 2 Skim 11 | . 6 . 5 . Fabricators . | . . . . . Repair Stations 2 | . 1 . 1 . Mechanics 2 | . 1 . 1 . Recycling Units 6 | . 2 . 2 2 Tunnel 6 | . 2 . 2 2 Scanalyzers . | . . . . . Garrison Access . | . . . . . Data Cores Recovered . | . . . . . Used . | . . . . . Hacking Detections 16 | . 6 . 5 5 Full Trace Events 1 | . . . . 1 Feedback Events . | . . . . . Feedback Blocked . | . . . . . Robot Schematics Acquired . | . . . . . Robots Built . | . . . . . Authchips . | . . . . . Time . | . . . . . Total Robot Build Rating . | . . . . . Part Schematics Acquired . | . . . . . Parts Built . | . . . . . Authchips . | . . . . . Time . | . . . . . Total Part Build Rating . | . . . . . Part Studies Acquired 1 | . . . 1 . Parts Repaired . | . . . . . Time . | . . . . . Parts Recycled . | . . . . . Recycled Matter . | . . . . . Retrieved Matter . | . . . . . Retrieved Components . | . . . . . Parts Scanalyzed . | . . . . . Part Schematics Acquired . | . . . . . Parts Damaged . | . . . . . Bothacking | -11 -10 -10 -9 -9 ------------ Run | Yrd Mat Min Mat Sto Used RIF Installer . | . . . . . Robots Hacked . | . . . . . Non-combat . | . . . . . Combat . | . . . . . Robot Hacks Applied . | . . . . . Relay Couplers Released . | . . . . . Fabnet Peak Effective % . | . . . . . Robots Rewired . | . . . . . Allies Hacked . | . . . . . Hacks Repelled . | . . . . . Allies | -11 -10 -10 -9 -9 -------- Run | Yrd Mat Min Mat Sto Total Allies 2 | . . 2 . . Largest Group 2 | . . 2 2 . Highest-Rated Group 50 | . . 50 50 . Highest-Rated Ally 31 | . . 31 31 . Total Orders . | . . . . . Ally Attacks 10 | . . . 10 . Total Damage 124 | . . . 124 . Kills 1 | . . . 1 . Allies Corrupted . | . . . . . Allies Melted . | . . . . . Intel | -11 -10 -10 -9 -9 ------- Run | Yrd Mat Min Mat Sto Active Infowar (turns) 965 | . 386 470 109 . Sensors 115 | . 112 . 3 . Terrain 850 | . 274 470 106 . Robot Analysis Total 1 | . . . 1 . Derelict Logs Recovered 2 | . . 2 . . Drone Launches . | . . . . . Drone Recoveries . | . . . . . Exploration | -11 -10 -10 -9 -9 ------------- Run | Yrd Mat Min Mat Sto Turns Passed 3236 | 63 1077 470 999 627 Spaces Moved 2320 | 52 938 397 590 343 Core 2 | 2 . . . . Treads . | . . . . . Legs . | . . . . . Wheels 2318 | 50 938 397 590 343 Hover . | . . . . . Flight . | . . . . . Fastest Speed 50 | 50 90 105 101 116 Average Speed 109 | 98 95 105 119 135 Slowest Speed 180 | 100 105 105 135 180 Overloaded Moves . | . . . . . Propulsion Burnouts . | . . . . . Robots Hopped . | . . . . . Potential Cave-ins . | . . . . . Cave-ins Triggered . | . . . . . Exploration Rate (%) 51 | 4 99 48 51 55 Regions Visited 4 Branch Regions 2 Pre-discovered Areas 11 | . 2 . 7 2 Known Exits Taken 2 | . 1 . 1 . Unknown Exits Taken 2 | 1 . 1 . . Scrap Searched 1 | . . 1 . . Spaces Dug 2 | . . . 1 1 Terrain Destroyed 72 | . 36 . 28 8 Melee . | . . . . . Projectile 36 | . . . 28 8 AOE 36 | . 36 . . . Terrain Rammed . | . . . . . Walls Destroyed . | . . . . . Machines Disabled . | . . . . . Actions | -11 -10 -10 -9 -9 --------- Run | Yrd Mat Min Mat Sto Total 2693 | 61 1033 442 736 421 Wait 90 | . 14 32 24 20 Move 2316 | 51 937 396 589 343 Hop . | . . . . . Pick Up 45 | 4 15 4 17 5 Fast Attach 15 | 6 5 . 2 2 Attach 14 | . 2 1 7 4 Detach . | . . . . . Swap 23 | . 4 . 17 2 Drop 21 | . 11 1 7 2 Fire 165 | . 45 4 73 43 Melee . | . . . . . Ram . | . . . . . Kick . | . . . . . Crush . | . . . . . Escape Stasis . | . . . . . Rewire . | . . . . . Trap 4 | . . 4 . . Miscellaneous . | . . . . . Route ------- -11/Scrapyard -10/Materials (discovered 6 exits: *Mat x3 / *Min x2 / [*Sub]) -10/Mines -9/Materials (discovered 6 exits: *Mat x3 / *Min x2 / *Sto) -9/Storage (discovered 2 exits: Mat / [*Rec]) History --------- Turn | Location | Event 16 | -11/Scrapyard | Discovered new exit (range 16) 64 | -11/Scrapyard | Entered Materials 81 | -10/Materials | Identified exit to Mines 203 | -10/Materials | Discovered new exit (range 12) 317 | -10/Materials | Build established: Mutant 355 | -10/Materials | Discovered new exit (range 4) 664 | -10/Materials | Derelicts attacked the area 742 | -10/Materials | Discovered new exit (range 14) 982 | -10/Materials | Learned Storage stockpile data 1069 | -10/Materials | Discovered new exit (range 8) 1108 | -10/Materials | Learned Storage garrison access intel 1141 | -10/Materials | Entered Mines 1142 | -10/Mines | Met a Derelict testing a Signal Generator 1146 | -10/Mines | Found Signal Generator 1179 | -10/Mines | Learned Materials stockpile data 1187 | -10/Mines | Learned Materials terminal intel 1203 | -10/Mines | A weapon hastily lodged in a ceiling crevice suddenly fell to the ground 1306 | -10/Mines | Found a hidden stash of uninstalled traps 1372 | -10/Mines | Discovered new exit (range 8) 1611 | -10/Mines | Entered Materials 1611 | -9/Materials | Accompanied by 2 allies 1611 | -9/Materials | Evolved 2 slots: Propulsion x1, Weapon x1 1613 | -9/Materials | Loaded intel: 12 terminal locations 1616 | -9/Materials | Led the pair of lost Derelicts to an unsafe place 1775 | -9/Materials | Central database locked down 1923 | -9/Materials | Destroyed 9 combat bots 1945 | -9/Materials | Identified exit to Mines 1945 | -9/Materials | Identified exit to Storage 2273 | -9/Materials | Learned 2 Storage zone layouts 2290 | -9/Materials | Identified exit to Materials 2299 | -9/Materials | Learned location of Zion (-7) 2301 | -9/Materials | Learned Storage non-interactive machine intel 2308 | -9/Materials | Learned location of Mines (-8) 2339 | -9/Materials | Lost 4 parts (1p1n1u1w) 2422 | -9/Materials | Core integrity fell below 50% 2610 | -9/Materials | Entered Storage 2613 | -9/Storage | Loaded intel: 28 non-interactive machine locations 2614 | -9/Storage | Loaded intel: 1 garrison access location 2940 | -9/Storage | Used back door to open Recycling access 2940 | -9/Storage | Discovered new exit (range 5) 3028 | -9/Storage | Build established: Gunner 3056 | -9/Storage | Core integrity fell below 20% 3083 | -9/Storage | Destroyed 7 combat bots 3237 | -9/Storage | Destroyed by Y-45 Defender with Heavy Assault Rifle Last Messages --------------- 03064_ Acquired 27 matter. 03065_ K-01 Serf collects debris. 03070_ Acquired 18 matter. 03073_ K-01 Serf collects debris. 03115_ Acquired Imp. Light Cannon. 03116_ Wheel destroyed. 03117_ Y-45 Defender destroyed. 03121_ Acquired 15 matter. 03156_ U-05 Engineer builds a Wall. 03173_ G-34 Mercenary destroyed. 03177_ U-05 Engineer builds a Door. 03180_ Acquired 40 matter. 03188_ Acquired 28 matter. 03215_ K-01 Serf cleans the Terminal. 03227_ Imp. Ion Engine destroyed. 03234_ C-30 ARC bursts open, deploying its payload. 03234_ G-47 Trooper unfolds itself. 03234_ G-34 Mercenary unfolds itself. 03234_ Critical hit (Burn: +37). Map ----- +----------------------------------------------------+ | ?????????????????????????????????????????????? | | ?????????????????????????????????????????????? | | ???????????????"""""?"""""???????????????????? | | ???????????????"""""?"""""???????????????????? | | ???????????????"""""?"""""???????????????????? | | ????"?"??????????????????????????????????????? | | ???????????????????????????????????""""??????? | | ???????????????????????????????????"??""?????? | | ???????????????????????????????????"??"""????? | | ???????????????????????????????????"""??"????? | | ????????????????????????????????????""??"????? | | ?????????????????????????????????????""""????? | | ?????????????????????????????????????????????? | | ?????????????????????????????????????????????? | | ????????????????????????######???????????????? | | ???????????????????????? ! #?? ????????????? | | ???????????????????????? #?? ????????????? | | ??????????"????????????? Y #?? ????????????? | | ??????????"????????????? ???T????????????? | | ??????????"????????????? ??? ????????????? | | ????????????????????????# #??# #???????????? | | ????????????????????????# #??# #???????????? | | ????????????????????????# #??# #???????????? | | ????????????????""""????# #??# #???????????? | | ??????????????# " " ???+ #??# #???????????? | | ??????????????# " " ???#@ #??# #???????????? | | ??????????????# " " ???# #??# #???????????? | | ??????????????# " " ???# #??# #???????????? | | ??????????????# """" ???# #??# #???????????? | | ??????????????# ???# g #??# #???????????? | | ??????????????####+##???# g####/######??????? | | ?????????????????# #????# gg/ #??????? | | ?????????????????# #????# ^^# #??????? | | ?????????????????# #????#^ # [ #??????? | | ???????????????### ##???# + = #??????? | | ?????########### ???# # #??????? | | ?????# ???# # #??????? | | ?????# ???# # [ #??????? | | ?????# ???#k # #??????? | | ?????######+#### ???# ###########??????? | | ?????????## #######???# #? ??????????? | | ?????????## T#???###### #?"""""??????????? | | ?????????##" "##???##!!## # """"" ?????????? | | ?????????## ##???##!!## !%# """"" ""#?????? | | ?????????## ##???##!!## + T"#?????? | | #####????## ##???##" ## !%# """"" ""#?????? | | ###??## ##???#T =# # """"" ?????????? | | ""#??#######???## !+% #?"""""??????????? | | T"#??################% #? ??????????? | | ""#???##???#"""#???## ###########??????? | +----------------------------------------------------+ Best States ------------- Heat Dissipation 38 Energy Generation 14 Energy Capacity 265 Matter Stores 300 Matter Capacity 300 Sight Range 16 Robot Scan Range 14 Terrain Scan Range 16 Terrain Scan Density 10 Armor Coverage 225 Power Shielding 33 Propulsion Shielding 15 Evasion (%) 42 Item Schematics ----------------- None Robot Schematics ------------------ None Fabricated ------------ Nothing Repaired ---------- Nothing Studied --------- Com. Wheel | -9/Materials | Hacked Alien Tech Used ----------------- None Achievements -------------- Network Effect Challenges ------------ None Game ------ Seed SwarmRagnarokMinigun Manual? 0 Play Time 00:39:34 Cumulative 339.2 hours Start 2025.10.24 @ 18:32:58 End 2025.10.24 @ 19:13:29 Sessions 1 Manual Loads 0 Difficulty Rogue Special Mode None Game No. 259 Rogue 259 Adventurer 0 Explorer 0 Win Type - Total 4 Types 3/0/1/0/0/0/0/0/0/0 Lore% 81 Gallery% 68 Achievement% 41 Wizard Run 0 Options --------- Layout 1 ASCII 0 Keyboard 0 Movement Mouse Keybinds 0 Fullscreen 1 Font 24/Smallcaps Map View 50x35 Zoom Use 0% Tactical HUD 1 Map Filters NONE Filters NONE Steam 1 RUN: 0874c2c8-63c1-4ad1-9bd8-f8459e5d0c44